[Event "*** Titled Tuesday Blitz"]
[Site "Chess.com"]
[Date "2021.02.02"]
[Round "11"]
[White "CrushingKings"]
[Black "Witik"]
[Result "1-0"]
[WhiteElo "2395"]
[BlackElo "2731"]
[TimeControl "180+1"]
[EndTime "12:06:51 PST"]
[Termination "CrushingKings won on time"]

1. e4 {[%clk 0:03:00.9]} 1... c6 {[%clk 0:02:59.9]} 2. Nf3 {[%clk 0:02:58]} 2...
d6 {[%clk 0:03:00.4]} 3. d4 {[%clk 0:02:56.7]} 3... h6 {[%clk 0:03:00.6]} 4. h3
{[%clk 0:02:56.8]} 4... g5 {[%clk 0:03:00.3]} 5. c4 {[%clk 0:02:55.6]} 5... Bg7
{[%clk 0:03:00.2]} 6. Nc3 {[%clk 0:02:55.3]} 6... Nd7 {[%clk 0:03:00.5]} 7. Be3
{[%clk 0:02:54.9]} 7... Nf8 {[%clk 0:03:00.7]} 8. Qd2 {[%clk 0:02:53.2]} 8...
Ng6 {[%clk 0:03:01]} 9. g3 {[%clk 0:02:47.2]} 9... Nf6 {[%clk 0:02:59.8]} 10.
O-O-O {[%clk 0:02:29.7]} 10... Qa5 {[%clk 0:02:58.8]} 11. Kb1 {[%clk 0:02:29]}
11... g4 {[%clk 0:02:45.1]} 12. Ng1 {[%clk 0:02:24.4]} 12... Bd7 {[%clk
0:02:35.3]} 13. Nge2 {[%clk 0:02:16.3]} 13... O-O-O {[%clk 0:02:31.2]} 14. Nc1
{[%clk 0:02:15.5]} 14... Kb8 {[%clk 0:02:27]} 15. Nb3 {[%clk 0:02:15.5]} 15...
Qc7 {[%clk 0:02:27.3]} 16. h4 {[%clk 0:02:13.2]} 16... h5 {[%clk 0:02:22.7]} 17.
c5 {[%clk 0:01:52.2]} 17... dxc5 {[%clk 0:02:18.5]} 18. Nxc5 {[%clk 0:01:42.7]}
18... Bc8 {[%clk 0:02:18.1]} 19. Bc4 {[%clk 0:01:30.3]} 19... e5 {[%clk
0:02:14.5]} 20. d5 {[%clk 0:01:29.6]} 20... Ne8 {[%clk 0:01:31.5]} 21. Qc2
{[%clk 0:00:58.5]} 21... Nd6 {[%clk 0:01:25.8]} 22. Qb3 {[%clk 0:00:55.4]} 22...
Ka8 {[%clk 0:01:25.9]} 23. dxc6 {[%clk 0:00:53.9]} 23... bxc6 {[%clk 0:01:24.1]}
24. Nd5 {[%clk 0:00:48.1]} 24... cxd5 {[%clk 0:00:49]} 25. Bxd5+ {[%clk
0:00:48.5]} 25... Nb7 {[%clk 0:00:49.2]} 26. Qa4 {[%clk 0:00:41.1]} 26... Rxd5
{[%clk 0:00:48.5]} 27. Rxd5 {[%clk 0:00:34.2]} 27... Qa5 {[%clk 0:00:31.8]} 28.
Qc2 {[%clk 0:00:22.8]} 28... Nxc5 {[%clk 0:00:16]} 29. Rxc5 {[%clk 0:00:22.9]}
29... Qa6 {[%clk 0:00:16.3]} 30. Rc6 {[%clk 0:00:20.9]} 30... Qb7 {[%clk
0:00:09.2]} 31. Rc7 {[%clk 0:00:21.3]} 31... Qa6 {[%clk 0:00:07.6]} 32. Rxa7+
{[%clk 0:00:20.9]} 32... Qxa7 {[%clk 0:00:08.1]} 33. Bxa7 {[%clk 0:00:21.5]}
33... Kxa7 {[%clk 0:00:08.9]} 34. Qc7+ {[%clk 0:00:21.9]} 34... Bb7 {[%clk
0:00:09.2]} 35. Qxf7 {[%clk 0:00:21.8]} 35... Rf8 {[%clk 0:00:08.5]} 36. Qxg7
{[%clk 0:00:21.9]} 36... Rxf2 {[%clk 0:00:02.3]} 37. Rc1 {[%clk 0:00:19.5]}
37... Nf8 {[%clk 0:00:01.1]} 38. Rc7 {[%clk 0:00:18.7]} 1-0

[Event "*** Titled Tuesday Blitz"]
[Site "Chess.com"]
[Date "2021.02.02"]
[Round "11"]
[White "Piacramling"]
[Black "dosto07"]
[Result "1-0"]
[WhiteElo "2330"]
[BlackElo "2414"]
[TimeControl "180+1"]
[EndTime "12:06:51 PST"]
[Termination "Piacramling won on time"]

1. Nf3 {[%clk 0:02:57.8]} 1... d5 {[%clk 0:02:59.4]} 2. d4 {[%clk 0:02:56.4]}
2... Nf6 {[%clk 0:02:58.2]} 3. c4 {[%clk 0:02:56.4]} 3... dxc4 {[%clk
0:02:58.2]} 4. e3 {[%clk 0:02:54.6]} 4... e6 {[%clk 0:02:58.6]} 5. Bxc4 {[%clk
0:02:54.1]} 5... c5 {[%clk 0:02:59]} 6. Qe2 {[%clk 0:02:53.6]} 6... a6 {[%clk
0:02:58.2]} 7. dxc5 {[%clk 0:02:52.8]} 7... Bxc5 {[%clk 0:02:56.5]} 8. O-O
{[%clk 0:02:52.9]} 8... Nc6 {[%clk 0:02:51]} 9. a3 {[%clk 0:02:51.9]} 9... O-O
{[%clk 0:02:48.2]} 10. b4 {[%clk 0:02:51.5]} 10... Bd6 {[%clk 0:02:47.8]} 11.
Bb2 {[%clk 0:02:50.4]} 11... e5 {[%clk 0:02:44.3]} 12. e4 {[%clk 0:02:35]} 12...
Nh5 {[%clk 0:02:28.4]} 13. Nbd2 {[%clk 0:02:24.5]} 13... Nf4 {[%clk 0:02:27.7]}
14. Qe3 {[%clk 0:02:23.8]} 14... Qf6 {[%clk 0:02:18.6]} 15. Rfd1 {[%clk
0:02:17.4]} 15... Bg4 {[%clk 0:02:06.1]} 16. Bf1 {[%clk 0:02:09.2]} 16... Nd4
{[%clk 0:01:46.4]} 17. Nxd4 {[%clk 0:01:50.7]} 17... exd4 {[%clk 0:01:32.3]} 18.
Bxd4 {[%clk 0:01:47.4]} 18... Qh6 {[%clk 0:01:26.5]} 19. e5 {[%clk 0:01:35.3]}
19... Rfe8 {[%clk 0:01:04.6]} 20. Re1 {[%clk 0:01:23.7]} 20... Bc7 {[%clk
0:00:54.5]} 21. Qg3 {[%clk 0:01:20.1]} 21... Bf5 {[%clk 0:00:41.7]} 22. Nc4
{[%clk 0:01:18.4]} 22... Ng6 {[%clk 0:00:36.4]} 23. Rad1 {[%clk 0:00:56.5]}
23... Qf4 {[%clk 0:00:22.2]} 24. Qxf4 {[%clk 0:00:37.2]} 24... Nxf4 {[%clk
0:00:21.9]} 25. Nd6 {[%clk 0:00:29.6]} 25... Bxd6 {[%clk 0:00:20.1]} 26. exd6
{[%clk 0:00:29.2]} 26... Rxe1 {[%clk 0:00:11.2]} 27. Rxe1 {[%clk 0:00:29.1]}
27... Be6 {[%clk 0:00:09]} 28. Bb6 {[%clk 0:00:26.4]} 28... Nd5 {[%clk
0:00:08.2]} 29. Bc7 {[%clk 0:00:19.8]} 29... Kf8 {[%clk 0:00:05.5]} 30. Rc1
{[%clk 0:00:12.8]} 30... Ke8 {[%clk 0:00:04.6]} 31. Bc4 {[%clk 0:00:08.8]} 31...
Nxc7 {[%clk 0:00:02.7]} 32. dxc7 {[%clk 0:00:07.9]} 32... Rc8 {[%clk 0:00:01.8]}
33. Bxe6 {[%clk 0:00:07.1]} 33... fxe6 {[%clk 0:00:01.8]} 34. f4 {[%clk
0:00:06.7]} 34... Kd7 {[%clk 0:00:02]} 35. Kf2 {[%clk 0:00:06.7]} 1-0

[Event "*** Titled Tuesday Blitz"]
[Site "Chess.com"]
[Date "2021.02.02"]
[Round "11"]
[White "Chessbard1972"]
[Black "szefru"]
[Result "0-1"]
[WhiteElo "2403"]
[BlackElo "2262"]
[TimeControl "180+1"]
[EndTime "12:06:52 PST"]
[Termination "szefru won by resignation"]

1. d4 {[%clk 0:03:00.9]} 1... Nf6 {[%clk 0:02:59.2]} 2. Nf3 {[%clk 0:02:56.8]}
2... g6 {[%clk 0:02:55.8]} 3. c4 {[%clk 0:02:56.7]} 3... Bg7 {[%clk 0:02:49.6]}
4. g3 {[%clk 0:02:56.2]} 4... O-O {[%clk 0:02:48.9]} 5. Bg2 {[%clk 0:02:55.9]}
5... c6 {[%clk 0:02:49.4]} 6. O-O {[%clk 0:02:53.6]} 6... d5 {[%clk 0:02:49.9]}
7. b3 {[%clk 0:02:51.9]} 7... Ne4 {[%clk 0:02:42.4]} 8. Bb2 {[%clk 0:02:48.8]}
8... dxc4 {[%clk 0:02:34.1]} 9. bxc4 {[%clk 0:02:46.7]} 9... c5 {[%clk
0:02:34.6]} 10. e3 {[%clk 0:02:42]} 10... Nc6 {[%clk 0:02:31]} 11. Nbd2 {[%clk
0:02:35.8]} 11... Nxd2 {[%clk 0:02:30.2]} 12. Qxd2 {[%clk 0:02:35.3]} 12... cxd4
{[%clk 0:02:30.2]} 13. exd4 {[%clk 0:02:33.9]} 13... Bg4 {[%clk 0:02:25.8]} 14.
d5 {[%clk 0:02:22.8]} 14... Bxf3 {[%clk 0:02:25.5]} 15. Bxg7 {[%clk 0:02:14.5]}
15... Kxg7 {[%clk 0:02:25.1]} 16. Qb2+ {[%clk 0:02:09.2]} 16... f6 {[%clk
0:02:19.9]} 17. Bxf3 {[%clk 0:02:07.9]} 17... Ne5 {[%clk 0:02:20.1]} 18. Be2
{[%clk 0:02:06]} 18... b6 {[%clk 0:02:20.4]} 19. f4 {[%clk 0:02:04.3]} 19... Nf7
{[%clk 0:02:18.3]} 20. Rfd1 {[%clk 0:01:59.4]} 20... Qc7 {[%clk 0:02:18.4]} 21.
Qd4 {[%clk 0:01:57.2]} 21... Nd6 {[%clk 0:02:17.9]} 22. Rac1 {[%clk 0:01:55.3]}
22... Rac8 {[%clk 0:02:15.8]} 23. Bf1 {[%clk 0:01:50.1]} 23... Nf5 {[%clk
0:02:13.6]} 24. Qf2 {[%clk 0:01:49.1]} 24... g5 {[%clk 0:01:59.9]} 25. c5 {[%clk
0:01:30.9]} 25... bxc5 {[%clk 0:01:56.3]} 26. Ba6 {[%clk 0:01:30.4]} 26... Rcd8
{[%clk 0:01:50.3]} 27. Qxc5 {[%clk 0:01:25.2]} 27... Qxc5+ {[%clk 0:01:31.6]}
28. Rxc5 {[%clk 0:01:24.1]} 28... Rd6 {[%clk 0:01:31.8]} 29. Bc8 {[%clk
0:01:10.1]} 29... Ne3 {[%clk 0:01:30.3]} 30. Rd3 {[%clk 0:01:08.6]} 30... gxf4
{[%clk 0:01:29.8]} 31. gxf4 {[%clk 0:01:08]} 31... Nxd5 {[%clk 0:01:28.1]} 32.
Rdxd5 {[%clk 0:00:59.6]} 32... Rxd5 {[%clk 0:01:29]} 33. Rxd5 {[%clk 0:00:59.1]}
33... Rxc8 {[%clk 0:01:29.1]} 34. Rd7 {[%clk 0:00:59.1]} 34... Rc1+ {[%clk
0:01:26.6]} 35. Kg2 {[%clk 0:00:57]} 35... Rc2+ {[%clk 0:01:27]} 36. Kg3 {[%clk
0:00:57.4]} 36... Rxa2 {[%clk 0:01:27.2]} 37. Rxe7+ {[%clk 0:00:57.9]} 37... Kg6
{[%clk 0:01:27.7]} 38. f5+ {[%clk 0:00:57.3]} 38... Kxf5 {[%clk 0:01:27.4]} 39.
Rxh7 {[%clk 0:00:56.8]} 39... a5 {[%clk 0:01:26.1]} 40. h4 {[%clk 0:00:54]}
40... Ra3+ {[%clk 0:01:23]} 41. Kg2 {[%clk 0:00:51.5]} 41... Kg4 {[%clk
0:01:23.3]} 42. Rg7+ {[%clk 0:00:45.9]} 42... Kxh4 {[%clk 0:01:22.9]} 43. Rg6
{[%clk 0:00:43.3]} 43... f5 {[%clk 0:01:22.8]} 44. Kf2 {[%clk 0:00:43.1]} 44...
a4 {[%clk 0:01:14.6]} 45. Rg8 {[%clk 0:00:40.8]} 45... Rb3 {[%clk 0:01:13.6]}
46. Ke2 {[%clk 0:00:30.2]} 46... a3 {[%clk 0:01:07.7]} 47. Ra8 {[%clk
0:00:29.7]} 47... Kg4 {[%clk 0:01:06.1]} 48. Kd2 {[%clk 0:00:26.2]} 48... f4
{[%clk 0:01:02.3]} 49. Kc2 {[%clk 0:00:26]} 49... Re3 {[%clk 0:01:01.6]} 50. Kd2
{[%clk 0:00:24.5]} 50... Kg3 {[%clk 0:00:58.8]} 51. Rg8+ {[%clk 0:00:23.4]}
51... Kf2 {[%clk 0:00:58.6]} 52. Ra8 {[%clk 0:00:20.4]} 52... f3 {[%clk
0:00:58.1]} 53. Ra4 {[%clk 0:00:17.8]} 53... a2 {[%clk 0:00:56.9]} 54. Ra5
{[%clk 0:00:09.4]} 54... Re1 {[%clk 0:00:55.4]} 0-1

[Event "*** Titled Tuesday Blitz"]
[Site "Chess.com"]
[Date "2021.02.02"]
[Round "11"]
[White "IceBelka"]
[Black "AliKa2810"]
[Result "0-1"]
[WhiteElo "2386"]
[BlackElo "2565"]
[TimeControl "180+1"]
[EndTime "12:06:54 PST"]
[Termination "AliKa2810 won on time"]

1. e4 {[%clk 0:03:00.9]} 1... c6 {[%clk 0:02:59.5]} 2. d4 {[%clk 0:02:57.7]}
2... d5 {[%clk 0:03:00.4]} 3. exd5 {[%clk 0:02:54.6]} 3... cxd5 {[%clk
0:03:00.4]} 4. c3 {[%clk 0:02:53.8]} 4... Nc6 {[%clk 0:03:00.9]} 5. Bf4 {[%clk
0:02:43.5]} 5... Bf5 {[%clk 0:02:59.3]} 6. Bd3 {[%clk 0:02:43.2]} 6... Bxd3
{[%clk 0:02:58.5]} 7. Qxd3 {[%clk 0:02:44.1]} 7... Nf6 {[%clk 0:02:58.7]} 8. Nf3
{[%clk 0:02:43.3]} 8... e6 {[%clk 0:02:59.1]} 9. Nbd2 {[%clk 0:02:43.4]} 9...
Bd6 {[%clk 0:02:59.5]} 10. Bxd6 {[%clk 0:02:43.8]} 10... Qxd6 {[%clk 0:03:00.4]}
11. O-O {[%clk 0:02:44.1]} 11... O-O {[%clk 0:03:01]} 12. Rfe1 {[%clk 0:02:44]}
12... b5 {[%clk 0:02:50.7]} 13. b4 {[%clk 0:02:42.6]} 13... a6 {[%clk
0:02:49.1]} 14. Nb3 {[%clk 0:02:41.3]} 14... Ne4 {[%clk 0:02:48.8]} 15. Nc5
{[%clk 0:02:40.8]} 15... f5 {[%clk 0:02:49]} 16. a4 {[%clk 0:02:30.2]} 16...
Rab8 {[%clk 0:02:25.8]} 17. axb5 {[%clk 0:02:29]} 17... axb5 {[%clk 0:02:26.7]}
18. Ra6 {[%clk 0:02:06.2]} 18... Nxb4 {[%clk 0:02:25]} 19. cxb4 {[%clk
0:01:57.7]} 19... Nxc5 {[%clk 0:02:23.3]} 20. Rxd6 {[%clk 0:01:54.6]} 20... Nxd3
{[%clk 0:02:22.9]} 21. Rexe6 {[%clk 0:01:46.4]} 21... Nxb4 {[%clk 0:02:22.3]}
22. Ne5 {[%clk 0:01:36.2]} 22... Rb7 {[%clk 0:01:58.9]} 23. Rb6 {[%clk
0:01:32.3]} 23... Rc7 {[%clk 0:01:42]} 24. h4 {[%clk 0:01:29.8]} 24... Nc2
{[%clk 0:01:41.5]} 25. Nc6 {[%clk 0:01:16.2]} 25... b4 {[%clk 0:01:36.1]} 26.
Ne7+ {[%clk 0:01:07.1]} 26... Kf7 {[%clk 0:01:25.3]} 27. Nxd5 {[%clk 0:01:05.3]}
27... Rd7 {[%clk 0:01:25.5]} 28. Ne3 {[%clk 0:00:42.5]} 28... Nxd4 {[%clk
0:01:19.4]} 29. Re5 {[%clk 0:00:36.9]} 29... g6 {[%clk 0:01:13]} 30. Rd5 {[%clk
0:00:15.2]} 30... Rxd5 {[%clk 0:01:08.7]} 31. Nxd5 {[%clk 0:00:16.1]} 31... b3
{[%clk 0:01:09.1]} 32. Rb4 {[%clk 0:00:16.4]} 32... Rc8 {[%clk 0:00:57.2]} 33.
Kh2 {[%clk 0:00:13.2]} 33... Rc1 {[%clk 0:00:54.8]} 34. Rb7+ {[%clk 0:00:10.8]}
34... Ke6 {[%clk 0:00:53.4]} 35. Nf4+ {[%clk 0:00:10.1]} 35... Kd6 {[%clk
0:00:51.8]} 36. Nd3 {[%clk 0:00:09.2]} 36... Rd1 {[%clk 0:00:48.4]} 37. Nb2
{[%clk 0:00:08.5]} 37... Rb1 {[%clk 0:00:46.9]} 38. Nc4+ {[%clk 0:00:07]} 38...
Kc5 {[%clk 0:00:46.6]} 39. Nd2 {[%clk 0:00:05.1]} 39... Rb2 {[%clk 0:00:43.5]}
40. Nxb3+ {[%clk 0:00:05.3]} 40... Nxb3 {[%clk 0:00:40.5]} 41. Rxh7 {[%clk
0:00:04.4]} 41... Rxf2 {[%clk 0:00:40.4]} 42. Rg7 {[%clk 0:00:04.5]} 42... Rf4
{[%clk 0:00:36.3]} 43. g3 {[%clk 0:00:03.6]} 43... Rg4 {[%clk 0:00:36]} 44. h5
{[%clk 0:00:02.9]} 44... gxh5 {[%clk 0:00:34.9]} 45. Rh7 {[%clk 0:00:01.8]}
45... Rg5 {[%clk 0:00:32]} 0-1

[Event "*** Titled Tuesday Blitz"]
[Site "Chess.com"]
[Date "2021.02.02"]
[Round "11"]
[White "DenisQ"]
[Black "Zhigalko_Sergei"]
[Result "0-1"]
[WhiteElo "2655"]
[BlackElo "2886"]
[TimeControl "180+1"]
[EndTime "12:06:56 PST"]
[Termination "Zhigalko_Sergei won by resignation"]

1. Nf3 {[%clk 0:03:00.9]} 1... d5 {[%clk 0:03:00.2]} 2. c4 {[%clk 0:03:01]} 2...
d4 {[%clk 0:03:00.5]} 3. e4 {[%clk 0:02:56.5]} 3... Nc6 {[%clk 0:02:47.1]} 4. d3
{[%clk 0:02:55.9]} 4... e5 {[%clk 0:02:47.2]} 5. Be2 {[%clk 0:02:55.5]} 5... a5
{[%clk 0:02:46.1]} 6. O-O {[%clk 0:02:55.1]} 6... Nge7 {[%clk 0:02:31.2]} 7. Na3
{[%clk 0:02:52.7]} 7... Ng6 {[%clk 0:02:30.8]} 8. Ne1 {[%clk 0:02:39.7]} 8...
Bxa3 {[%clk 0:02:20.8]} 9. bxa3 {[%clk 0:02:39]} 9... O-O {[%clk 0:02:21.7]} 10.
Bg4 {[%clk 0:02:35.9]} 10... b6 {[%clk 0:01:57.2]} 11. Bxc8 {[%clk 0:02:32.9]}
11... Qxc8 {[%clk 0:01:55.3]} 12. Rb1 {[%clk 0:02:33.5]} 12... f5 {[%clk
0:01:50.8]} 13. exf5 {[%clk 0:02:23.8]} 13... Qxf5 {[%clk 0:01:50.6]} 14. Qf3
{[%clk 0:02:14.5]} 14... Qd7 {[%clk 0:01:11]} 15. Qe4 {[%clk 0:02:07.8]} 15...
Rae8 {[%clk 0:01:07.8]} 16. Nf3 {[%clk 0:02:06.9]} 16... Nb8 {[%clk 0:00:54.1]}
17. Rb5 {[%clk 0:01:52.8]} 17... Qd6 {[%clk 0:00:30.4]} 18. Rd5 {[%clk
0:01:38.7]} 18... Qe6 {[%clk 0:00:21.2]} 19. c5 {[%clk 0:01:01.1]} 19... Nd7
{[%clk 0:00:18]} 20. Ng5 {[%clk 0:00:46.8]} 20... Qc6 {[%clk 0:00:16.1]} 21.
Rxd4 {[%clk 0:00:29.5]} 21... Qxe4 {[%clk 0:00:10.2]} 22. Rxe4 {[%clk
0:00:30.4]} 22... Nxc5 {[%clk 0:00:10.8]} 23. Rc4 {[%clk 0:00:27.7]} 23... Nf4
{[%clk 0:00:06.4]} 24. Bxf4 {[%clk 0:00:23.6]} 24... Rxf4 {[%clk 0:00:07.3]} 25.
Rfc1 {[%clk 0:00:13.3]} 25... Nxd3 {[%clk 0:00:04.9]} 26. Rxf4 {[%clk
0:00:12.9]} 26... exf4 {[%clk 0:00:05.3]} 27. Rd1 {[%clk 0:00:12.9]} 27... Re1+
{[%clk 0:00:04.4]} 28. Rxe1 {[%clk 0:00:12.4]} 28... Nxe1 {[%clk 0:00:05.3]} 29.
Ne6 {[%clk 0:00:12.9]} 29... c5 {[%clk 0:00:04.5]} 30. Nxf4 {[%clk 0:00:13]}
30... Nc2 {[%clk 0:00:04.9]} 31. Nd5 {[%clk 0:00:13.2]} 31... b5 {[%clk
0:00:04]} 32. Nc3 {[%clk 0:00:13.4]} 32... Nxa3 {[%clk 0:00:04]} 33. Kf1 {[%clk
0:00:13.2]} 33... b4 {[%clk 0:00:04.5]} 34. Ne4 {[%clk 0:00:13]} 34... c4 {[%clk
0:00:05.1]} 35. Ke2 {[%clk 0:00:13.5]} 35... b3 {[%clk 0:00:05.4]} 36. axb3
{[%clk 0:00:14.4]} 36... cxb3 {[%clk 0:00:06.2]} 0-1

[Event "*** Titled Tuesday Blitz"]
[Site "Chess.com"]
[Date "2021.02.02"]
[Round "11"]
[White "IMRosen"]
[Black "ljuks68"]
[Result "1-0"]
[WhiteElo "2556"]
[BlackElo "2385"]
[TimeControl "180+1"]
[EndTime "12:06:56 PST"]
[Termination "IMRosen won on time"]

1. d4 {[%clk 0:03:00.9]} 1... d5 {[%clk 0:02:59.8]} 2. Bf4 {[%clk 0:03:00.8]}
2... Nf6 {[%clk 0:02:59.4]} 3. e3 {[%clk 0:03:00]} 3... c6 {[%clk 0:02:57.1]} 4.
Nd2 {[%clk 0:02:58.5]} 4... Bf5 {[%clk 0:02:55.6]} 5. c4 {[%clk 0:02:58.5]} 5...
e6 {[%clk 0:02:55.1]} 6. Qb3 {[%clk 0:02:53.2]} 6... Qc8 {[%clk 0:02:29]} 7. Rc1
{[%clk 0:02:52.7]} 7... Nbd7 {[%clk 0:02:18.5]} 8. Ngf3 {[%clk 0:02:51.5]} 8...
Be7 {[%clk 0:02:17.8]} 9. h3 {[%clk 0:02:51.9]} 9... O-O {[%clk 0:02:17]} 10.
Be2 {[%clk 0:02:52.6]} 10... Ne4 {[%clk 0:02:05.3]} 11. O-O {[%clk 0:02:52.2]}
11... Bd6 {[%clk 0:01:40.5]} 12. Bxd6 {[%clk 0:02:31.2]} 12... Nxd6 {[%clk
0:01:40.4]} 13. Qa3 {[%clk 0:02:31.5]} 13... Qc7 {[%clk 0:01:38.3]} 14. cxd5
{[%clk 0:02:15.6]} 14... exd5 {[%clk 0:01:32.2]} 15. b4 {[%clk 0:02:15.8]} 15...
b5 {[%clk 0:01:11.4]} 16. Qc3 {[%clk 0:01:47]} 16... Nc4 {[%clk 0:01:10.8]} 17.
Nb3 {[%clk 0:01:45.1]} 17... Rae8 {[%clk 0:00:51.7]} 18. Rfd1 {[%clk 0:01:38]}
18... h6 {[%clk 0:00:48.5]} 19. Ra1 {[%clk 0:01:34.9]} 19... Nf6 {[%clk
0:00:37.1]} 20. Nc5 {[%clk 0:01:24.4]} 20... Ne4 {[%clk 0:00:36.2]} 21. Nxe4
{[%clk 0:01:20.8]} 21... Bxe4 {[%clk 0:00:34.3]} 22. Nd2 {[%clk 0:01:15.5]}
22... Bg6 {[%clk 0:00:19]} 23. a4 {[%clk 0:01:11.6]} 23... a6 {[%clk 0:00:19]}
24. Nb3 {[%clk 0:00:48.7]} 24... f5 {[%clk 0:00:17.7]} 25. g3 {[%clk 0:00:37.1]}
25... f4 {[%clk 0:00:17]} 26. gxf4 {[%clk 0:00:37.2]} 26... Bf5 {[%clk
0:00:15.9]} 27. Bf1 {[%clk 0:00:16]} 27... Qc8 {[%clk 0:00:11.6]} 28. Kh2 {[%clk
0:00:14.8]} 28... Rf6 {[%clk 0:00:10.3]} 29. Bg2 {[%clk 0:00:13]} 29... Rfe6
{[%clk 0:00:08.9]} 30. axb5 {[%clk 0:00:13.1]} 30... Nxe3 {[%clk 0:00:07.8]} 31.
fxe3 {[%clk 0:00:11.3]} 31... Rxe3 {[%clk 0:00:07.7]} 32. Qxc6 {[%clk
0:00:11.9]} 32... Qd8 {[%clk 0:00:04.9]} 33. Re1 {[%clk 0:00:06.4]} 33... Qh4
{[%clk 0:00:03.8]} 34. Qxe8+ {[%clk 0:00:05.2]} 34... Rxe8 {[%clk 0:00:02.9]}
35. Rxe8+ {[%clk 0:00:06.1]} 35... Kh7 {[%clk 0:00:03.5]} 36. Rf1 {[%clk
0:00:06.7]} 36... Qf6 {[%clk 0:00:01.8]} 37. Re5 {[%clk 0:00:06.7]} 1-0

[Event "*** Titled Tuesday Blitz"]
[Site "Chess.com"]
[Date "2021.02.02"]
[Round "11"]
[White "GumisGLHF"]
[Black "WPWPWP-2015"]
[Result "0-1"]
[WhiteElo "2364"]
[BlackElo "2494"]
[TimeControl "180+1"]
[EndTime "12:06:58 PST"]
[Termination "WPWPWP-2015 won by resignation"]

1. c4 {[%clk 0:03:00.9]} 1... e5 {[%clk 0:02:59]} 2. Nc3 {[%clk 0:03:00.2]} 2...
Nf6 {[%clk 0:02:58.3]} 3. Nf3 {[%clk 0:02:59.8]} 3... Nc6 {[%clk 0:02:57.7]} 4.
d4 {[%clk 0:02:59.7]} 4... exd4 {[%clk 0:02:50.3]} 5. Nxd4 {[%clk 0:02:59.4]}
5... Bb4 {[%clk 0:02:36.6]} 6. Bg5 {[%clk 0:02:58.3]} 6... Bxc3+ {[%clk
0:02:34.3]} 7. bxc3 {[%clk 0:02:59.2]} 7... d6 {[%clk 0:02:30.2]} 8. e3 {[%clk
0:02:55.4]} 8... O-O {[%clk 0:02:23.5]} 9. Be2 {[%clk 0:02:53.4]} 9... Ne5
{[%clk 0:02:23.1]} 10. Qc2 {[%clk 0:02:44.8]} 10... h6 {[%clk 0:02:20.5]} 11.
Bh4 {[%clk 0:02:44.6]} 11... Ng6 {[%clk 0:02:19.1]} 12. Bg3 {[%clk 0:02:44.7]}
12... Re8 {[%clk 0:02:17.9]} 13. c5 {[%clk 0:02:10.2]} 13... dxc5 {[%clk
0:02:09.6]} 14. Nb5 {[%clk 0:02:09.8]} 14... Ne5 {[%clk 0:02:08.9]} 15. Rd1
{[%clk 0:02:06.9]} 15... Qe7 {[%clk 0:02:08.1]} 16. a4 {[%clk 0:01:51.9]} 16...
a6 {[%clk 0:01:59.7]} 17. Na3 {[%clk 0:01:51.7]} 17... Bd7 {[%clk 0:01:53.9]}
18. O-O {[%clk 0:01:46.3]} 18... Bc6 {[%clk 0:01:52.9]} 19. Nc4 {[%clk
0:01:37.3]} 19... Nxc4 {[%clk 0:01:34.3]} 20. Bxc4 {[%clk 0:01:37.1]} 20... Ne4
{[%clk 0:01:33.9]} 21. Bd5 {[%clk 0:01:19.9]} 21... Bxd5 {[%clk 0:01:28.3]} 22.
Rxd5 {[%clk 0:01:19.6]} 22... Rad8 {[%clk 0:01:27.7]} 23. Rfd1 {[%clk
0:01:15.2]} 23... Rxd5 {[%clk 0:01:25.7]} 24. Rxd5 {[%clk 0:01:16.1]} 24... Nf6
{[%clk 0:01:13.3]} 25. Rd2 {[%clk 0:01:08.9]} 25... Rd8 {[%clk 0:01:08.5]} 26.
Rxd8+ {[%clk 0:00:58.7]} 26... Qxd8 {[%clk 0:01:07.8]} 27. f3 {[%clk 0:00:59.3]}
27... b5 {[%clk 0:00:48]} 28. axb5 {[%clk 0:00:57.8]} 28... axb5 {[%clk
0:00:48.1]} 29. e4 {[%clk 0:00:53.8]} 29... c4 {[%clk 0:00:47.3]} 30. Be5 {[%clk
0:00:46.2]} 30... c6 {[%clk 0:00:39.1]} 31. Kf1 {[%clk 0:00:41.3]} 31... Nh7
{[%clk 0:00:34.3]} 32. Bd4 {[%clk 0:00:40.5]} 32... Nf8 {[%clk 0:00:33.9]} 33.
Ke2 {[%clk 0:00:39.3]} 33... Qd6 {[%clk 0:00:31.2]} 34. g3 {[%clk 0:00:39.2]}
34... Ne6 {[%clk 0:00:30.6]} 35. Be3 {[%clk 0:00:38.9]} 35... Qa3 {[%clk
0:00:28]} 36. Qd2 {[%clk 0:00:35.7]} 36... Qa1 {[%clk 0:00:26.2]} 37. f4 {[%clk
0:00:35.3]} 37... Qh1 {[%clk 0:00:25.3]} 38. f5 {[%clk 0:00:30.4]} 38... Qg2+
{[%clk 0:00:24.7]} 39. Ke1 {[%clk 0:00:28.2]} 39... Qh1+ {[%clk 0:00:23.8]} 40.
Ke2 {[%clk 0:00:26.8]} 40... Qxh2+ {[%clk 0:00:22.3]} 41. Bf2 {[%clk 0:00:27.1]}
41... Ng5 {[%clk 0:00:21.8]} 0-1